fUSD/lending_fUSD_20250930
["ID","MTS","AMOUNT","RATE_DAILY","PERIOD"]
[388545687,1759236787231,-500.0,0.00021095,2]
[388545688,1759236787247,-1474.8,0.00021095,2]
[388545689,1759236787262,-2034.42,0.00021095,2]
[388545690,1759236787278,-500.0,0.00021095,2]
[388545691,1759236787293,-930.23,0.00021095,2]
[388545692,1759236787306,-621.73,0.00021095,2]
[388545693,1759236787321,-649.78,0.00021095,2]
[388545694,1759236787335,-5083.1,0.00021095,2]
[388545695,1759236787349,-526.92,0.00021095,2]
[388545696,1759236787362,-3870.52,0.00021095,2]
[388545697,1759236787376,-500.19,0.00021095,2]
[388545698,1759236787391,-4000.09,0.00021095,2]
[388545699,1759236787405,-2882.92,0.00021095,2]
[388545700,1759236787420,-582.24,0.00021095,2]
[388545701,1759236787434,-2589.34,0.00021095,2]
[388545702,1759236787449,-669.58,0.00021095,2]
[388545703,1759236787463,-3909.15,0.00021095,2]
[388545704,1759236787477,-1814.33,0.00021095,2]
[388545705,1759236787491,-3571.88,0.00021095,2]
[388545706,1759236787505,-500.0,0.00021095,2]
[388545707,1759236787519,-1246.74,0.00021095,2]
[388545708,1759236787534,-500.0,0.00021095,2]
[388545709,1759236787549,-3512.3,0.00021095,2]
[388545710,1759236787564,-500.0,0.00021095,2]
[388545711,1759236787578,-906.86,0.00021095,2]
[388545712,1759236787592,-583.0,0.00021095,2]
[388545713,1759236787606,-500.0,0.00021095,2]
[388545714,1759236787622,-3135.66,0.00021095,2]
[388545715,1759236787636,-2151.04,0.00021095,2]
[388545716,1759236787651,-500.0,0.00021095,2]
[388545717,1759236787665,-500.0,0.00021095,2]
[388545718,1759236787679,-1108.16,0.00021095,2]
[388545719,1759236787693,-638.79,0.00021095,2]
[388545720,1759236787708,-572.19,0.00021095,2]
[388545721,1759236787723,-829.99,0.00021095,2]
[388545722,1759236787737,-657.04,0.00021095,2]
[388545723,1759236787750,-2775.75,0.00021095,2]
[388545724,1759236787766,-1121.19,0.00021095,2]
[388545725,1759236787779,-4624.82,0.00021095,2]
[388545726,1759236787790,-939.33,0.00021095,2]
[388545727,1759236787800,-500.0,0.00021095,2]
[388545728,1759236787810,-1073.2,0.00021095,2]
[388545729,1759236787819,-2580.78,0.00021095,2]
[388545730,1759236787828,-1644.44,0.00021095,2]
[388545731,1759236787838,-4635.08,0.00021095,2]
[388545732,1759236787850,-2774.48,0.00021095,2]
[388545733,1759236787860,-1622.26,0.00021095,2]
[388545734,1759236787872,-500.0,0.00021095,2]
[388545735,1759236787882,-879.12,0.00021095,2]
[388545736,1759236787893,-500.0,0.00021095,2]
[388545737,1759236787903,-500.0,0.00021095,2]
[388545738,1759236787913,-4201.08,0.00021095,2]
[388545739,1759236787922,-507.27,0.00021095,2]
[388545740,1759236787931,-500.0,0.00021095,2]
[388545741,1759236787943,-2633.64,0.00021095,2]
[388545742,1759236787952,-500.0,0.00021095,2]
[388545743,1759236787961,-500.0,0.00021095,2]
[388545744,1759236787971,-5296.49,0.00021095,2]
[388545745,1759236787980,-384.30137215,0.00021095,2]
[388545746,1759236787990,-687.91,0.00021095,2]
[388545747,1759236787999,-500.0,0.00021095,2]
[388545748,1759236788009,-1096.67,0.00021095,2]
[388545749,1759236788018,-500.0,0.00021095,2]
[388545750,1759236788028,-3995.31,0.00021095,2]
[388545751,1759236788038,-2031.41,0.00021095,2]
[388545752,1759236788048,-802.84,0.00021095,2]
[388545753,1759236788058,-2195.66,0.00021095,2]
[388545754,1759236788068,-500.0,0.00021095,2]
[388545755,1759236788078,-2315.21,0.00021095,2]
[388545756,1759236788090,-500.0,0.00021095,2]
[388545757,1759236788101,-2795.95,0.00021095,2]
[388545758,1759236788111,-500.0,0.00021095,2]
[388545759,1759236788120,-2843.26,0.00021095,2]
[388545760,1759236788130,-300.0,0.00021095,2]
[388545761,1759236788139,-500.0,0.00021095,2]
[388545762,1759236788148,-500.0,0.00021095,2]
[388545763,1759236788158,-770.21,0.00021095,2]
[388545764,1759236788167,-500.0,0.00021095,2]
[388545765,1759236788178,-500.0,0.00021095,2]
[388545766,1759236788188,-480.18932218,0.00021095,2]
[388545767,1759236788197,-521.13,0.00021095,2]
[388545768,1759236788207,-1197.5,0.00021095,2]
[388545769,1759236788217,-1731.1,0.00021095,2]
[388545770,1759236788226,-2474.62,0.00021095,2]
[388545771,1759236788236,-1863.44,0.00021095,2]
[388545772,1759236788245,-500.0,0.00021095,2]
[388545773,1759236788254,-500.0,0.00021095,2]
[388545774,1759236788263,-500.0,0.00021095,2]
[388545775,1759236788273,-1335.55,0.00021095,2]
[388545776,1759236788283,-2446.39,0.00021095,2]
[388545777,1759236788293,-568.67,0.00021095,2]
[388545778,1759236788303,-1912.02,0.00021095,2]
[388545779,1759236788312,-621.31,0.00021095,2]
[388545780,1759236788321,-2610.4,0.00021095,2]
[388545781,1759236788331,-1934.01,0.00021095,2]
[388545782,1759236788341,-626.84,0.00021095,2]
[388545783,1759236788352,-500.0,0.00021095,2]
[388545784,1759236788362,-598.23,0.00021095,2]
[388545785,1759236788372,-500.0,0.00021095,2]
[388545786,1759236788382,-500.0,0.00021095,2]
[388545787,1759236788391,-610.56,0.00021095,2]
[388545788,1759236788400,-500.0,0.00021095,2]
[388545789,1759236788409,-3946.61,0.00021095,2]
[388545790,1759236788419,-786.49,0.00021095,2]
[388545791,1759236788428,-2744.05,0.00021095,2]
[388545792,1759236788438,-500.0,0.00021095,2]
[388545793,1759236788448,-1736.91,0.00021095,2]
[388545794,1759236788458,-500.0,0.00021095,2]
[388545795,1759236788467,-1202.76,0.00021095,2]
[388545796,1759236788476,-1978.62,0.00021095,2]
[388545797,1759236788486,-4345.96,0.00021095,2]
[388545798,1759236788496,-500.0,0.00021095,2]
[388545799,1759236788506,-599.39,0.00021095,2]
[388545800,1759236788516,-925.67,0.00021095,2]
[388545801,1759236788527,-648.45,0.00021095,2]
[388545802,1759236788536,-1318.96,0.00021095,2]
[388545803,1759236788546,-500.0,0.00021095,2]
[388545804,1759236788555,-500.0,0.00021095,2]
[388545805,1759236788564,-3545.03,0.00021095,2]
[388545806,1759236788574,-2922.79,0.00021095,2]
[388545807,1759236788584,-500.0,0.00021095,2]
[388545808,1759236788594,-500.0,0.00021095,2]
[388545809,1759236788604,-1854.6,0.00021095,2]
[388545810,1759236788613,-787.29,0.00021095,2]
[388545811,1759236788623,-3075.3,0.00021095,2]
[388545812,1759236788632,-500.0,0.00021095,2]
[388545813,1759236788641,-500.0,0.00021095,2]
[388545814,1759236788651,-3309.16,0.00021095,2]
[388545815,1759236788660,-4252.51,0.00021095,2]
[388545816,1759236788670,-4836.52,0.00021095,2]
[388545817,1759236788680,-505.42,0.00021095,2]
[388545818,1759236788690,-500.0,0.00021095,2]
[388545819,1759236788702,-610.04,0.00021095,2]
[388545820,1759236788711,-500.0,0.00021095,2]
[388545821,1759236788725,-2771.3,0.00021095,2]
[388545822,1759236788734,-2300.54,0.00021095,2]
[388545823,1759236788744,-500.0,0.00021095,2]
[388545824,1759236788753,-500.0,0.00021095,2]
[388545825,1759236788763,-500.0,0.00021095,2]
[388545826,1759236788773,-1600.72,0.00021095,2]
[388545827,1759236788783,-500.0,0.00021095,2]
[388545828,1759236788793,-4537.1,0.00021095,2]
[388545829,1759236788803,-3468.68,0.00021095,2]
[388545830,1759236788812,-4138.34,0.00021095,2]
[388545831,1759236788822,-500.0,0.00021095,2]
[388545832,1759236788832,-2219.19,0.00021095,2]
[388545833,1759236788842,-1285.88,0.00021095,2]
[388545834,1759236788852,-865.96,0.00021095,2]
[388545835,1759236788864,-500.0,0.00021095,2]
[388545836,1759236788875,-500.0,0.00021095,2]
[388545837,1759236788885,-500.0,0.00021095,2]
[388545838,1759236788895,-1028.47,0.00021095,2]
[388545839,1759236788905,-3259.44,0.00021095,2]
[388545840,1759236788915,-836.63,0.00021095,2]
[388545841,1759236788926,-3419.59,0.00021095,2]
[388545842,1759236790010,-2557.33,0.00021095,2]
[388545843,1759236790034,-2084.4,0.00021095,2]
[388545844,1759236790055,-8334.17,0.00021095,2]
[388545845,1759236790083,-1859.67,0.00021095,2]
[388545846,1759236790105,-618.66,0.00021095,2]
[388545847,1759236790127,-697.8,0.00021095,2]
[388545848,1759236790146,-500.0,0.00021095,2]
[388545849,1759236790167,-500.0,0.00021095,2]
[388545850,1759236790186,-872.72,0.00021095,2]
[388545851,1759236790200,-2834.78,0.00021095,2]
[388545852,1759236790209,-871.1,0.00021095,2]
[388545853,1759236790219,-1859.04,0.00021095,2]
[388545854,1759236790228,-1063.98,0.00021095,2]
[388545855,1759236790238,-509.5,0.00021095,2]
[388545856,1759236790247,-10507.95,0.00021095,2]
[388545857,1759236790257,-500.0,0.00021095,2]
[388545858,1759236790266,-219.69720239,0.00021095,2]
[388545859,1759236790275,-929.49,0.00021095,2]
[388545860,1759236790284,-500.0,0.00021095,2]
[388545861,1759236790295,-745.96,0.00021095,2]
[388545862,1759236790305,-4439.11,0.00021095,2]
[388545863,1759236790315,-2792.99,0.00021095,2]
[388545864,1759236790324,-500.0,0.00021095,2]
[388545865,1759236790333,-989.05,0.00021095,2]
[388545866,1759236790342,-4340.48,0.00021095,2]
[388545867,1759236790352,-1279.39,0.00021095,2]
[388545868,1759236790361,-500.0,0.00021095,2]
[388545869,1759236790371,-548.12,0.00021095,2]
[388545870,1759236790380,-2129.67,0.00021095,2]
[388545871,1759236790388,-500.0,0.00021095,2]
[388545872,1759236790397,-3669.84,0.00021095,2]
[388545873,1759236790406,-805.4,0.00021095,2]
[388545874,1759236790416,-3523.25,0.00021095,2]
[388545875,1759236790425,-2285.37,0.00021095,2]
[388545876,1759236790434,-500.0,0.00021095,2]
[388545877,1759236790443,-5551.49,0.00021095,2]
[388545878,1759236790453,-5950.02,0.00021095,2]
[388545879,1759236790461,-6330.81,0.00021095,2]
[388545880,1759236790471,-4104.25,0.00021095,2]
[388545881,1759236790480,-1154.61,0.00021095,2]
[388545882,1759236790489,-1583.44,0.00021095,2]
[388545883,1759236790499,-546.47,0.00021095,2]
[388545884,1759236790508,-1613.6,0.00021095,2]
[388545885,1759236790518,-2256.46,0.00021095,2]
[388545886,1759236790528,-576.79,0.00021095,2]
[388545887,1759236790537,-4612.6,0.00021095,2]
[388545888,1759236790546,-1406.64,0.00021095,2]
[388545889,1759236790556,-15617.62,0.00021095,2]
[388545890,1759236790565,-893.75,0.00021095,2]
[388545891,1759236790574,-708.23,0.00021095,2]
[388545892,1759236790583,-500.0,0.00021095,2]
[388545893,1759236790593,-500.0,0.00021095,2]
[388545894,1759236790603,-7867.12,0.00021095,2]
[388545895,1759236790612,-366.13760884,0.00021095,2]
[388545896,1759236790622,-3222.59,0.00021095,2]
[388545897,1759236790631,-4430.21,0.00021095,2]
[388545898,1759236790640,-3094.31,0.00021095,2]
[388545899,1759236790649,-8599.07,0.00021095,2]
[388545900,1759236790659,-500.0,0.00021095,2]
[388545901,1759236790669,-1608.86,0.00021095,2]
[388545902,1759236790678,-4834.6,0.00021095,2]
[388545903,1759236790688,-535.69,0.00021095,2]
[388545904,1759236790698,-5002.0,0.00021095,2]
[388545905,1759236790708,-771.77,0.00021095,2]
[388545906,1759236790717,-2260.51,0.00021095,2]
[388545907,1759236790726,-6082.65,0.00021095,2]
[388545908,1759236790736,-4224.68,0.00021095,2]
[388545909,1759236790745,-500.0,0.00021095,2]
[388545910,1759236790755,-2607.66,0.00021095,2]
[388545911,1759236790764,-4485.22,0.00021095,2]
[388545912,1759236790773,-782.32,0.00021095,2]
[388545913,1759236790783,-4052.2,0.00021095,2]
[388545914,1759236790792,-500.0,0.00021095,2]
[388545915,1759236790801,-500.0,0.00021095,2]
[388545916,1759236790810,-500.0,0.00021095,2]
[388545917,1759236790820,-3481.91,0.00021095,2]
[388545918,1759236790829,-1404.94,0.00021095,2]
[388545919,1759236790839,-2345.29,0.00021095,2]
[388545920,1759236790848,-4198.69,0.00021095,2]
[388545921,1759236790857,-886.09,0.00021095,2]
[388545922,1759236790871,-11810.4,0.00021095,2]
[388545923,1759236790880,-854.6,0.00021095,2]
[388545924,1759236790889,-559.36,0.00021095,2]
[388545925,1759236790898,-500.0,0.00021095,2]
[388545926,1759236790907,-4218.11,0.00021095,2]
[388545927,1759236790916,-375.47796266,0.00021095,2]
[388545928,1759236790925,-11135.57,0.00021095,2]
[388545929,1759236790935,-4919.51,0.00021095,2]
[388545930,1759236790944,-500.0,0.00021095,2]
[388545931,1759236790953,-966.27,0.00021095,2]
[388545932,1759236790963,-500.0,0.00021095,2]
[388545933,1759236790972,-4531.41,0.00021095,2]
[388545934,1759236790982,-500.0,0.00021095,2]
[388545935,1759236790991,-1390.21,0.00021095,2]
[388545936,1759236791001,-1775.8,0.00021095,2]
[388545937,1759236791010,-3442.87,0.00021095,2]
[388545938,1759236791019,-500.0,0.00021095,2]
[388545939,1759236791029,-500.0,0.00021095,2]
[388545940,1759236791038,-1630.94,0.00021095,2]
[388545941,1759236791048,-738.87,0.00021095,2]
[388545942,1759236791057,-986.68,0.00021095,2]
[388545943,1759236791066,-1338.26,0.00021095,2]
[388545944,1759236791076,-934.2,0.00021095,2]
[388545945,1759236791085,-500.0,0.00021095,2]
[388545946,1759236791094,-958.77,0.00021095,2]
[388545947,1759236791103,-500.0,0.00021095,2]
[388545948,1759236791114,-2361.94,0.00021095,2]
[388545949,1759236791125,-500.0,0.00021095,2]
[388545950,1759236791134,-5791.96,0.00021095,2]
[388545951,1759236791143,-1117.79,0.00021095,2]
[388545952,1759236791152,-4271.07,0.00021095,2]
[388545953,1759236791162,-500.0,0.00021095,2]
[388545954,1759236791171,-500.0,0.00021095,2]
[388545955,1759236791180,-500.0,0.00021095,2]
[388545956,1759236791190,-500.0,0.00021095,2]
[388545957,1759236791199,-3304.23,0.00021095,2]
[388545958,1759236791208,-715.09,0.00021095,2]
[388545959,1759236791218,-5730.05,0.00021095,2]
[388545960,1759236791227,-1235.06,0.00021095,2]
[388545961,1759236791236,-3680.77,0.00021095,2]
[388545962,1759236791246,-937.61,0.00021095,2]
[388545963,1759236791255,-2811.19,0.00021095,2]
[388545964,1759236791265,-730.34,0.00021095,2]
[388545965,1759236791274,-4400.59,0.00021095,2]
[388545966,1759236791284,-5411.44,0.00021095,2]
[388545967,1759236791293,-781.28,0.00021095,2]
[388545968,1759236791303,-500.0,0.00021095,2]
[388545969,1759236791312,-1451.45,0.00021095,2]
[388545970,1759236791321,-775.98,0.00021095,2]
[388545971,1759236791331,-4496.61,0.00021095,2]
[388545972,1759236791340,-5464.08,0.00021095,2]
[388545973,1759236791350,-500.0,0.00021095,2]
[388545974,1759236791359,-4726.46,0.00021095,2]
[388545975,1759236791368,-5606.8,0.00021095,2]
[388545976,1759236791377,-5259.88,0.00021095,2]
[388545977,1759236791386,-500.0,0.00021095,2]
[388545978,1759236791401,-500.0,0.00021095,2]
[388545979,1759236791410,-500.0,0.00021095,2]
[388545980,1759236791420,-4349.5,0.00021095,2]
[388545981,1759236791429,-500.0,0.00021095,2]
[388545982,1759236791438,-500.0,0.00021095,2]
[388545983,1759236791448,-500.0,0.00021095,2]
[388545984,1759236791457,-2939.81,0.00021095,2]
[388545985,1759236791467,-266.85620821,0.00021095,2]
[388545986,1759236791476,-3908.19,0.00021095,2]
[388545987,1759236791485,-500.0,0.00021095,2]
[388545988,1759236791495,-3323.26,0.00021095,2]
[388545989,1759236791504,-2283.42,0.00021095,2]
[388545990,1759236791514,-1821.92,0.00021095,2]
[388545991,1759236791523,-1256.35,0.00021095,2]
[388545992,1759236791533,-1954.99,0.00021095,2]
[388545993,1759236791543,-4512.75,0.00021095,2]
[388545994,1759236791555,-3925.81,0.00021095,2]
[388545995,1759236791564,-500.0,0.00021095,2]
[388545996,1759236791574,-413.96867044,0.00021095,2]
[388545997,1759236791583,-6111.21,0.00021095,2]
[388545998,1759236791595,-2841.53,0.00021095,2]
[388545999,1759236791606,-500.0,0.00021095,2]
[388546000,1759236791616,-8170.98,0.00021095,2]
[388546001,1759236791626,-500.0,0.00021095,2]
[388546002,1759236791636,-1249.51,0.00021095,2]
[388546003,1759236791647,-2157.39,0.00021095,2]
[388546004,1759236791657,-3100.53,0.00021095,2]
[388546005,1759236791668,-5064.26,0.00021095,2]
[388546006,1759236791678,-3871.47,0.00021095,2]
[388546007,1759236791690,-761.53,0.00021095,2]
[388546008,1759236791701,-500.0,0.00021095,2]
[388546009,1759236791712,-3113.64,0.00021095,2]
[388546010,1759236791722,-3678.71,0.00021095,2]
[388546011,1759236791732,-221.07026256,0.00021095,2]
[388546012,1759236791743,-1552.44,0.00021095,2]
[388546013,1759236791753,-1427.41,0.00021095,2]
[388546014,1759236791763,-2755.02,0.00021095,2]
[388546015,1759236791774,-500.0,0.00021095,2]
[388546016,1759236791784,-6442.41,0.00021095,2]
[388546017,1759236791799,-875.73,0.00021095,2]
[388546018,1759236791811,-694.15,0.00021095,2]
[388546019,1759236791821,-2781.0,0.00021095,2]
[388546020,1759236791831,-1860.95,0.00021095,2]
[388546021,1759236791842,-826.29,0.00021095,2]
[388546022,1759236791852,-1340.22,0.00021095,2]
[388546023,1759236791866,-22451.0,0.00021095,2]
[388546024,1759236791878,-4022.76,0.00021095,2]
[388546025,1759236791889,-6949.9,0.00021095,2]
[388546026,1759236791899,-500.0,0.00021095,2]
[388546027,1759236791911,-7280.81,0.00021095,2]
[388546028,1759236791921,-500.0,0.00021095,2]
[388546029,1759236791933,-5522.62,0.00021095,2]
[388546030,1759236791944,-500.0,0.00021095,2]
[388546031,1759236791954,-4837.09,0.00021095,2]
[388546032,1759236791964,-610.29,0.00021095,2]
[388546033,1759236791975,-331.92737666,0.00021095,2]
[388546034,1759236791985,-3296.57,0.00021095,2]
[388546035,1759236791995,-529.91,0.00021095,2]
[388546036,1759236792005,-647.37,0.00021095,2]
[388546037,1759236792015,-858.6,0.00021095,2]
[388546038,1759236792025,-2405.12,0.00021095,2]
[388546039,1759236792036,-1934.59,0.00021095,2]
[388546040,1759236792046,-500.0,0.00021095,2]
[388546041,1759236792056,-2171.4,0.00021095,2]
[388546042,1759236792066,-3571.8,0.00021095,2]
[388546043,1759236792077,-8309.91,0.00021095,2]
[388546044,1759236792087,-1072.81,0.00021095,2]
[388546045,1759236792098,-500.0,0.00021095,2]
[388546046,1759236792108,-8791.84,0.00021095,2]
[388546047,1759236792119,-500.0,0.00021095,2]
[388546048,1759236792129,-500.0,0.00021095,2]
[388546049,1759236792139,-500.0,0.00021095,2]
[388546050,1759236792149,-1146.39,0.00021095,2]
[388546051,1759236792160,-5681.34,0.00021095,2]
[388546052,1759236792170,-500.0,0.00021095,2]
[388546053,1759236792179,-4544.53,0.00021095,2]
[388546054,1759236792189,-550.71,0.00021095,2]
[388546055,1759236792205,-931.46,0.00021095,2]
[388546056,1759236792216,-1091.82,0.00021095,2]
[388546057,1759236792227,-3373.16,0.00021095,2]
[388546058,1759236792237,-500.0,0.00021095,2]
[388546059,1759236792247,-6286.35,0.00021095,2]
[388546060,1759236792257,-426.23844798,0.00021095,2]
[388546061,1759236792268,-2088.79,0.00021095,2]
[388546062,1759236792278,-995.39,0.00021095,2]
[388546063,1759236792288,-20780.06,0.00021095,2]
[388546064,1759236792299,-1361.61,0.00021095,2]
[388546065,1759236792309,-552.85,0.00021095,2]
[388546066,1759236792319,-1382.23,0.00021095,2]
[388546067,1759236792330,-626.59,0.00021095,2]
[388546068,1759236792341,-500.0,0.00021095,2]
[388546069,1759236792352,-7317.79,0.00021095,2]
[388546070,1759236792362,-863.38,0.00021095,2]
[388546071,1759236792373,-500.0,0.00021095,2]
[388546072,1759236792383,-500.0,0.00021095,2]
[388546073,1759236792393,-2931.23,0.00021095,2]
[388546074,1759236792403,-1085.95,0.00021095,2]
[388546075,1759236792414,-955.85,0.00021095,2]
[388546076,1759236792424,-500.0,0.00021095,2]
[388546077,1759236792435,-4502.44,0.00021095,2]
[388546078,1759236792445,-583.56,0.00021095,2]
[388546079,1759236792454,-600.59,0.00021095,2]
[388546080,1759236792464,-2124.7,0.00021095,2]
[388546081,1759236792474,-500.0,0.00021095,2]
[388546082,1759236792484,-946.36,0.00021095,2]
[388546083,1759236792495,-500.0,0.00021095,2]
[388546084,1759236792504,-249.16404749,0.00021095,2]
[388546085,1759236792515,-647.51,0.00021095,2]
[388546086,1759236792526,-1563.0,0.00021095,2]
[388546087,1759236792536,-686.03,0.00021095,2]
[388546088,1759236792547,-500.0,0.00021095,2]
[388546089,1759236792557,-8455.89,0.00021095,2]
[388546090,1759236792567,-518.83,0.00021095,2]
[388546091,1759236792577,-7304.97,0.00021095,2]
[388546092,1759236792588,-5771.21,0.00021095,2]
[388546093,1759236792601,-1411.3,0.00021095,2]
[388546094,1759236792611,-980.63,0.00021095,2]
[388546095,1759236792621,-538.51,0.00021095,2]
[388546096,1759236792631,-3656.45,0.00021095,2]
[388546097,1759236792641,-900.85,0.00021095,2]
[388546098,1759236792651,-500.0,0.00021095,2]
[388546099,1759236792661,-500.0,0.00021095,2]
[388546100,1759236792671,-3495.87,0.00021095,2]
[388546101,1759236792682,-1539.27,0.00021095,2]
[388546102,1759236792692,-1212.58,0.00021095,2]
[388546103,1759236792702,-1284.53,0.00021095,2]
[388546104,1759236792713,-2614.82,0.00021095,2]
[388546105,1759236792723,-20621.41,0.00021095,2]
[388546106,1759236792734,-500.0,0.00021095,2]
[388546107,1759236792745,-500.0,0.00021095,2]
[388546108,1759236792755,-945.74,0.00021095,2]
[388546109,1759236792766,-691.97,0.00021095,2]
[388546110,1759236792776,-1404.11,0.00021095,2]
[388546111,1759236792786,-500.0,0.00021095,2]
[388546112,1759236792796,-500.0,0.00021095,2]
[388546113,1759236792807,-500.0,0.00021095,2]
[388546114,1759236792817,-276.97538313,0.00021095,2]
[388546115,1759236792829,-2841.81,0.00021095,2]
[388546116,1759236792839,-5307.21,0.00021095,2]
[388546117,1759236792848,-19283.37,0.00021095,2]
[388546118,1759236792860,-4690.1,0.00021095,2]
[388546119,1759236792871,-500.0,0.00021095,2]
[388546120,1759236792881,-4442.33,0.00021095,2]
[388546121,1759236792891,-5540.87,0.00021095,2]
[388546122,1759236792901,-3710.9,0.00021095,2]
[388546123,1759236792912,-2391.54,0.00021095,2]
[388546124,1759236792922,-5362.41,0.00021095,2]
[388546125,1759236792932,-923.24,0.00021095,2]
[388546126,1759236792942,-934.91,0.00021095,2]
[388546127,1759236792952,-1000.94,0.00021095,2]
[388546128,1759236792963,-3621.62,0.00021095,2]
[388546129,1759236792973,-500.0,0.00021095,2]
[388546130,1759236792983,-6705.33,0.00021095,2]
[388546131,1759236792994,-500.0,0.00021095,2]
[388546132,1759236793005,-2676.52,0.00021095,2]
[388546133,1759236793015,-1429.01,0.00021095,2]
[388546134,1759236793025,-500.0,0.00021095,2]
[388546135,1759236793035,-1639.11,0.00021095,2]
[388546136,1759236793045,-500.0,0.00021095,2]
[388546137,1759236793055,-4353.78,0.00021095,2]
[388546138,1759236793066,-654.98,0.00021095,2]
[388546139,1759236793076,-3746.29,0.00021095,2]
[388546140,1759236793086,-1228.07,0.00021095,2]
[388546141,1759236793096,-500.0,0.00021095,2]
[388546142,1759236793106,-6793.84,0.00021095,2]
[388546143,1759236793116,-771.21,0.00021095,2]
[388546144,1759236793125,-2023.02,0.00021095,2]
[388546145,1759236793561,-3994.63,0.00021095,2]
[388546146,1759236793571,-1848.51,0.00021095,2]
[388546147,1759236793581,-508.54,0.00021095,2]
[388546148,1759236793591,-7114.54,0.00021095,2]
[388546149,1759236793601,-813.64,0.00021095,2]
[388546150,1759236793610,-500.0,0.00021095,2]
[388546151,1759236793620,-7172.54,0.00021095,2]
[388546152,1759236793629,-3815.16,0.00021095,2]
[388546153,1759236793639,-1303.96,0.00021095,2]
[388546154,1759236793648,-527.56,0.00021095,2]
[388546155,1759236793658,-527.07,0.00021095,2]
[388546156,1759236793669,-1399.73,0.00021095,2]
[388546157,1759236793680,-500.0,0.00021095,2]
[388546158,1759236793690,-2619.03,0.00021095,2]
[388546159,1759236793700,-2913.4,0.00021095,2]
[388546160,1759236793709,-21774.44,0.00021095,2]
[388546161,1759236793719,-500.0,0.00021095,2]
[388546162,1759236793730,-2968.61,0.00021095,2]
[388546163,1759236793740,-500.0,0.00021095,2]
[388546164,1759236793751,-1918.13,0.00021095,2]
[388546165,1759236793760,-1472.51,0.00021095,2]
[388546166,1759236793778,-500.0,0.00021095,2]
[388546167,1759236793789,-4650.74,0.00021095,2]
[388546168,1759236793799,-500.0,0.00021095,2]
[388546169,1759236793810,-2147.86,0.00021095,2]
[388546170,1759236793822,-19565.78,0.00021095,2]
[388546171,1759236793833,-1497.08,0.00021095,2]
[388546172,1759236793842,-3388.02,0.00021095,2]
[388546173,1759236793853,-500.0,0.00021095,2]
[388546174,1759236793868,-4713.09,0.00021095,2]
[388546175,1759236793878,-2799.17,0.00021095,2]
[388546176,1759236793888,-2233.98,0.00021095,2]
[388546177,1759236793899,-1348.57,0.00021095,2]
[388546178,1759236793911,-1023.1,0.00021095,2]
[388546179,1759236793921,-1643.92,0.00021095,2]
[388546180,1759236793931,-1425.3,0.00021095,2]
[388546181,1759236793944,-1836.14,0.00021095,2]
[388546182,1759236793954,-4011.93,0.00021095,2]
[388546183,1759236793964,-500.0,0.00021095,2]
[388546184,1759236793975,-1122.49,0.00021095,2]
[388546185,1759236793985,-1174.34,0.00021095,2]
[388546186,1759236793996,-3165.44,0.00021095,2]